[Event "Titled Tuesday Blitz March 21 Early 2023"]
[White "Yuan, Qingyu"]
[Black "Alex_Sahakyan2006"]
[WhiteFideId "8609772"]
[WhiteElo "2359"]
[BlackElo "2621"]
[Result "1/2-1/2"]
[Round "11"]
[TimeControl "180+2"]
[Date "2023.03.21"]
[WhiteClock "0:00:18"]
[BlackClock "0:00:15"]

1. e4 {[%clk 0:02:57]}  c5 {[%clk 0:02:59]} 2. Nf3 {[%clk 0:02:57]}  Nc6 {[%clk 0:02:58]} 3. Bb5 {[%clk 0:02:58]}  g6 {[%clk 0:02:53]} 4. O-O {[%clk 0:02:57]}  Bg7 {[%clk 0:02:52]} 5. Re1 {[%clk 0:02:58]}  Qb6 {[%clk 0:02:38]} 6. Bxc6 {[%clk 0:02:35]}  dxc6 {[%clk 0:02:35]} 7. c3 {[%clk 0:02:32]}  c4 {[%clk 0:02:32]} 8. Qe2 {[%clk 0:02:20]}  Qc5 {[%clk 0:02:30]} 9. b3 {[%clk 0:02:16]}  Be6 {[%clk 0:02:22]} 10. Ba3 {[%clk 0:01:55]}  Qb5 {[%clk 0:02:20]} 11. Nd4 {[%clk 0:01:54]}  Bxd4 {[%clk 0:02:18]} 12. cxd4 {[%clk 0:01:55]}  Nf6 {[%clk 0:01:46]} 13. d5 {[%clk 0:01:07]}  cxd5 {[%clk 0:01:44]} 14. Nc3 {[%clk 0:01:05]}  Qc6 {[%clk 0:00:54]} 15. exd5 {[%clk 0:01:01]}  Nxd5 {[%clk 0:00:55]} 16. Nxd5 {[%clk 0:00:53]}  Qxd5 {[%clk 0:00:52]} 17. bxc4 {[%clk 0:00:53]}  Qd7 {[%clk 0:00:44]} 18. Qe5 {[%clk 0:00:48]}  O-O-O {[%clk 0:00:31]} 19. Red1 {[%clk 0:00:22]}  Qd4 {[%clk 0:00:24]} 20. Qg3 {[%clk 0:00:16]}  Qd3 {[%clk 0:00:19]} 21. Bxe7 {[%clk 0:00:14]}  Qxg3 {[%clk 0:00:15]} 22. hxg3 {[%clk 0:00:15]}  Rd3 {[%clk 0:00:15]} 23. Rac1 {[%clk 0:00:14]}  Kd7 {[%clk 0:00:15]} 24. Bf6 {[%clk 0:00:13]}  Rc8 {[%clk 0:00:15]} 25. c5 {[%clk 0:00:13]}  a6 {[%clk 0:00:14]} 26. Rc2 {[%clk 0:00:11]}  Bf5 {[%clk 0:00:12]} 27. Rb2 {[%clk 0:00:10]}  Rxc5 {[%clk 0:00:04]} 28. Rxb7+ {[%clk 0:00:10]}  Rc7 {[%clk 0:00:04]} 29. Rxc7+ {[%clk 0:00:09]}  Kxc7 {[%clk 0:00:05]} 30. Rc1+ {[%clk 0:00:09]}  Kd7 {[%clk 0:00:05]} 31. Bc3 {[%clk 0:00:07]}  Be6 {[%clk 0:00:05]} 32. a3 {[%clk 0:00:07]}  Bf5 {[%clk 0:00:05]} 33. Re1 {[%clk 0:00:06]}  h5 {[%clk 0:00:05]} 34. Re5 {[%clk 0:00:06]}  Be6 {[%clk 0:00:04]} 35. Bb4 {[%clk 0:00:05]}  Rb3 {[%clk 0:00:01]} 36. Ra5 {[%clk 0:00:05]}  Rb1+ {[%clk 0:00:02]} 37. Kh2 {[%clk 0:00:06]}  Bc4 {[%clk 0:00:03]} 38. Rc5 {[%clk 0:00:05]}  Bf1 {[%clk 0:00:03]} 39. Ba5 {[%clk 0:00:05]}  Rd1 {[%clk 0:00:03]} 40. Rc7+ {[%clk 0:00:05]}  Ke6 {[%clk 0:00:04]} 41. Rc6+ {[%clk 0:00:04]}  Kd5 {[%clk 0:00:04]} 42. Rf6 {[%clk 0:00:04]}  Ra1 {[%clk 0:00:02]} 43. Bb4 {[%clk 0:00:04]}  a5 {[%clk 0:00:02]} 44. Bf8 {[%clk 0:00:02]}  Rd1 {[%clk 0:00:02]} 45. Bh6 {[%clk 0:00:02]}  Ra1 {[%clk 0:00:01]} 46. Bf8 {[%clk 0:00:02]}  Ra2 {[%clk 0:00:02]} 47. Rxf7 {[%clk 0:00:01]}  Ke6 {[%clk 0:00:03]} 48. Rf4 {[%clk 0:00:02]}  Rxd2 {[%clk 0:00:02]} 49. Bg7 {[%clk 0:00:03]}  Rd5 {[%clk 0:00:01]} 50. Rf6+ {[%clk 0:00:03]}  Ke7 {[%clk 0:00:01]} 51. Bh8 {[%clk 0:00:03]}  Rd6 {[%clk 0:00:01]} 52. Rxd6 {[%clk 0:00:03]}  Kxd6 {[%clk 0:00:01]} 53. Bc3 {[%clk 0:00:04]}  a4 {[%clk 0:00:01]} 54. f3 {[%clk 0:00:04]}  Bd3 {[%clk 0:00:01]} 55. g4 {[%clk 0:00:04]}  hxg4 {[%clk 0:00:02]} 56. Kg3 {[%clk 0:00:04]}  gxf3 {[%clk 0:00:02]} 57. Kxf3 {[%clk 0:00:05]}  Bf5 {[%clk 0:00:03]} 58. Kf4 {[%clk 0:00:06]}  Bb1 {[%clk 0:00:04]} 59. g3 {[%clk 0:00:06]}  Ke6 {[%clk 0:00:05]} 60. Ke3 {[%clk 0:00:06]}  Kd5 {[%clk 0:00:06]} 61. Bf6 {[%clk 0:00:07]}  Kc4 {[%clk 0:00:06]} 62. Kd2 {[%clk 0:00:07]}  Kb3 {[%clk 0:00:06]} 63. Be7 {[%clk 0:00:08]}  Bf5 {[%clk 0:00:06]} 64. Ke3 {[%clk 0:00:09]}  Bb1 {[%clk 0:00:06]} 65. Kd4 {[%clk 0:00:10]}  g5 {[%clk 0:00:06]} 66. Ke5 {[%clk 0:00:11]}  Bc2 {[%clk 0:00:04]} 67. g4 {[%clk 0:00:09]}  Kb2 {[%clk 0:00:03]} 68. Kf6 {[%clk 0:00:07]}  Kb3 {[%clk 0:00:03]} 69. Kxg5 {[%clk 0:00:07]}  Kc4 {[%clk 0:00:04]} 70. Kf6 {[%clk 0:00:07]}  Kd5 {[%clk 0:00:04]} 71. g5 {[%clk 0:00:08]}  Kc6 {[%clk 0:00:05]} 72. Bb4 {[%clk 0:00:04]}  Kb7 {[%clk 0:00:05]} 73. g6 {[%clk 0:00:04]}  Bxg6 {[%clk 0:00:04]} 74. Kxg6 {[%clk 0:00:04]}  Ka8 {[%clk 0:00:05]} 75. Kf5 {[%clk 0:00:05]}  Kb7 {[%clk 0:00:05]} 76. Ke5 {[%clk 0:00:06]}  Ka8 {[%clk 0:00:06]} 77. Kd5 {[%clk 0:00:07]}  Kb7 {[%clk 0:00:07]} 78. Kc5 {[%clk 0:00:08]}  Ka8 {[%clk 0:00:07]} 79. Kb6 {[%clk 0:00:08]}  Kb8 {[%clk 0:00:06]} 80. Ka6 {[%clk 0:00:09]}  Ka8 {[%clk 0:00:06]} 81. Kb5 {[%clk 0:00:09]}  Kb7 {[%clk 0:00:06]} 82. Bc3 {[%clk 0:00:10]}  Ka8 {[%clk 0:00:07]} 83. Kc6 {[%clk 0:00:10]}  Kb8 {[%clk 0:00:06]} 84. Be5+ {[%clk 0:00:11]}  Ka8 {[%clk 0:00:07]} 85. Bf4 {[%clk 0:00:11]}  Ka7 {[%clk 0:00:07]} 86. Kc7 {[%clk 0:00:11]}  Ka8 {[%clk 0:00:08]} 87. Kc8 {[%clk 0:00:12]}  Ka7 {[%clk 0:00:09]} 88. Kd8 {[%clk 0:00:12]}  Ka8 {[%clk 0:00:09]} 89. Be3 {[%clk 0:00:13]}  Kb7 {[%clk 0:00:10]} 90. Bf2 {[%clk 0:00:14]}  Ka8 {[%clk 0:00:11]} 91. Bg1 {[%clk 0:00:15]}  Kb7 {[%clk 0:00:11]} 92. Bh2 {[%clk 0:00:16]}  Ka8 {[%clk 0:00:12]} 93. Bg3 {[%clk 0:00:16]}  Kb7 {[%clk 0:00:13]} 94. Bf4 {[%clk 0:00:17]}  Ka8 {[%clk 0:00:13]} 95. Bg5 {[%clk 0:00:18]}  Kb7 {[%clk 0:00:14]} 96. Bf4 {[%clk 0:00:18]}  Ka8 {[%clk 0:00:15]} 1/2-1/2


[Site "https://www.chess.com"]

[Event "Titled Tuesday Blitz March 21 Early 2023"]
[White "Ingebretsen, Jens E"]
[Black "Molina, Roberto Junio Brito"]
[WhiteFideId "1522965"]
[BlackFideId "2109450"]
[WhiteElo "2213"]
[BlackElo "2376"]
[Result "0-1"]
[Round "11"]
[TimeControl "180+2"]
[Date "2023.03.21"]
[WhiteClock "0:00:16"]
[BlackClock "0:00:25"]

1. c4 {[%clk 0:03:00]}  c6 {[%clk 0:02:59]} 2. Nf3 {[%clk 0:03:00]}  d5 {[%clk 0:03:00]} 3. e3 {[%clk 0:03:00]}  Nf6 {[%clk 0:02:59]} 4. b3 {[%clk 0:03:00]}  Bg4 {[%clk 0:02:59]} 5. Bb2 {[%clk 0:03:01]}  Nbd7 {[%clk 0:02:59]} 6. Be2 {[%clk 0:03:01]}  e6 {[%clk 0:02:59]} 7. O-O {[%clk 0:03:01]}  Bd6 {[%clk 0:02:59]} 8. h3 {[%clk 0:03:02]}  Bh5 {[%clk 0:02:59]} 9. d4 {[%clk 0:03:02]}  Ne4 {[%clk 0:02:57]} 10. Nfd2 {[%clk 0:03:00]}  Bxe2 {[%clk 0:02:57]} 11. Qxe2 {[%clk 0:03:01]}  Nxd2 {[%clk 0:02:54]} 12. Nxd2 {[%clk 0:03:00]}  O-O {[%clk 0:02:54]} 13. e4 {[%clk 0:02:59]}  Re8 {[%clk 0:02:50]} 14. e5 {[%clk 0:02:56]}  Bf8 {[%clk 0:02:47]} 15. Rad1 {[%clk 0:02:51]}  a5 {[%clk 0:02:45]} 16. a3 {[%clk 0:02:51]}  Qb6 {[%clk 0:02:41]} 17. Kh1 {[%clk 0:02:38]}  Qa6 {[%clk 0:02:37]} 18. f4 {[%clk 0:02:34]}  f5 {[%clk 0:02:35]} 19. exf6 {[%clk 0:02:31]}  Nxf6 {[%clk 0:02:34]} 20. Qf3 {[%clk 0:02:24]}  a4 {[%clk 0:02:32]} 21. cxd5 {[%clk 0:02:01]}  exd5 {[%clk 0:02:30]} 22. Rfe1 {[%clk 0:02:00]}  axb3 {[%clk 0:02:27]} 23. Qxb3 {[%clk 0:01:59]}  Rxe1+ {[%clk 0:02:18]} 24. Rxe1 {[%clk 0:01:59]}  b5 {[%clk 0:02:06]} 25. Re6 {[%clk 0:01:49]}  Kf7 {[%clk 0:02:01]} 26. f5 {[%clk 0:01:48]}  Bxa3 {[%clk 0:01:54]} 27. Bxa3 {[%clk 0:01:41]}  Qxa3 {[%clk 0:01:55]} 28. Qxa3 {[%clk 0:01:41]}  Rxa3 {[%clk 0:01:54]} 29. Rxc6 {[%clk 0:01:42]}  Ne4 {[%clk 0:01:47]} 30. Nf3 {[%clk 0:01:37]}  Ng3+ {[%clk 0:01:44]} 31. Kh2 {[%clk 0:01:37]}  Nxf5 {[%clk 0:01:45]} 32. Rb6 {[%clk 0:01:34]}  Rb3 {[%clk 0:01:34]} 33. Kg1 {[%clk 0:01:19]}  Ke7 {[%clk 0:01:31]} 34. Kf2 {[%clk 0:01:18]}  Nd6 {[%clk 0:01:27]} 35. Ne5 {[%clk 0:01:15]}  Ne4+ {[%clk 0:01:23]} 36. Kg1 {[%clk 0:01:13]}  g5 {[%clk 0:01:20]} 37. Rb7+ {[%clk 0:01:09]}  Ke6 {[%clk 0:01:20]} 38. Rxh7 {[%clk 0:01:08]}  b4 {[%clk 0:01:20]} 39. Rb7 {[%clk 0:01:07]}  Rb1+ {[%clk 0:01:20]} 40. Kh2 {[%clk 0:01:07]}  b3 {[%clk 0:01:20]} 41. Rb6+ {[%clk 0:00:56]}  Kf5 {[%clk 0:01:08]} 42. Nd3 {[%clk 0:00:56]}  Nd2 {[%clk 0:01:03]} 43. Nc5 {[%clk 0:00:42]}  Kf4 {[%clk 0:01:01]} 44. h4 {[%clk 0:00:16]}  Nf1+ {[%clk 0:00:53]} 45. Kh3 {[%clk 0:00:16]}  g4# {[%clk 0:00:25]} 0-1


[Site "https://www.chess.com"]

[Event "Titled Tuesday Blitz March 21 Early 2023"]
[White "benny_aizenberg"]
[Black "Postny, Evgeny"]
[BlackFideId "2804344"]
[WhiteElo "2593"]
[BlackElo "2509"]
[Result "1-0"]
[Round "11"]
[TimeControl "180+2"]
[Date "2023.03.21"]
[WhiteClock "0:01:17"]
[BlackClock "0:00:05"]

1. e4 {[%clk 0:02:59]}  c5 {[%clk 0:02:57]} 2. d4 {[%clk 0:02:57]}  cxd4 {[%clk 0:02:57]} 3. c3 {[%clk 0:02:57]}  d3 {[%clk 0:02:58]} 4. Nf3 {[%clk 0:02:55]}  d6 {[%clk 0:02:58]} 5. Bxd3 {[%clk 0:02:54]}  g6 {[%clk 0:02:58]} 6. Be3 {[%clk 0:02:51]}  Bg7 {[%clk 0:02:58]} 7. Nbd2 {[%clk 0:02:51]}  Nf6 {[%clk 0:02:58]} 8. O-O {[%clk 0:02:49]}  Nc6 {[%clk 0:02:59]} 9. h3 {[%clk 0:02:49]}  O-O {[%clk 0:02:59]} 10. a4 {[%clk 0:02:46]}  Qc7 {[%clk 0:02:56]} 11. Nc4 {[%clk 0:02:42]}  Nd7 {[%clk 0:02:54]} 12. a5 {[%clk 0:02:40]}  Nde5 {[%clk 0:02:50]} 13. Nfxe5 {[%clk 0:02:40]}  Nxe5 {[%clk 0:02:50]} 14. Nxe5 {[%clk 0:02:37]}  Bxe5 {[%clk 0:02:51]} 15. Bd4 {[%clk 0:02:31]}  Be6 {[%clk 0:02:45]} 16. Bxe5 {[%clk 0:02:30]}  dxe5 {[%clk 0:02:46]} 17. Qa4 {[%clk 0:02:29]}  Rfd8 {[%clk 0:02:42]} 18. Rfd1 {[%clk 0:02:29]}  Rd6 {[%clk 0:02:33]} 19. Be2 {[%clk 0:02:18]}  Kg7 {[%clk 0:02:32]} 20. Qb5 {[%clk 0:02:16]}  Rad8 {[%clk 0:02:26]} 21. Qxe5+ {[%clk 0:02:14]}  f6 {[%clk 0:02:26]} 22. Qb5 {[%clk 0:02:12]}  Rxd1+ {[%clk 0:02:24]} 23. Rxd1 {[%clk 0:02:12]}  Rxd1+ {[%clk 0:02:23]} 24. Bxd1 {[%clk 0:02:11]}  Bc4 {[%clk 0:02:13]} 25. Qb4 {[%clk 0:02:11]}  Bd3 {[%clk 0:01:58]} 26. Qd4 {[%clk 0:02:03]}  Bb1 {[%clk 0:01:57]} 27. b4 {[%clk 0:01:58]}  e5 {[%clk 0:01:54]} 28. Qd5 {[%clk 0:01:57]}  Qxc3 {[%clk 0:01:51]} 29. Qxb7+ {[%clk 0:01:56]}  Kh6 {[%clk 0:01:51]} 30. Qxa7 {[%clk 0:01:42]}  Qe1+ {[%clk 0:01:48]} 31. Kh2 {[%clk 0:01:42]}  Qxd1 {[%clk 0:01:49]} 32. b5 {[%clk 0:01:42]}  Qd2 {[%clk 0:01:19]} 33. a6 {[%clk 0:01:39]}  Bxe4 {[%clk 0:01:13]} 34. Qc5 {[%clk 0:01:36]}  Qe2 {[%clk 0:00:41]} 35. Qf8+ {[%clk 0:01:27]}  Kg5 {[%clk 0:00:39]} 36. h4+ {[%clk 0:01:26]}  Kh5 {[%clk 0:00:26]} 37. Qxf6 {[%clk 0:01:24]}  h6 {[%clk 0:00:17]} 38. Qxe5+ {[%clk 0:01:23]}  Kxh4 {[%clk 0:00:17]} 39. a7 {[%clk 0:01:17]}  Qg4 {[%clk 0:00:05]} 40. g3+ {[%clk 0:01:17]} 1-0


[Site "https://www.chess.com"]

[Event "Titled Tuesday Blitz March 21 Early 2023"]
[White "Reprintsev, Alexander"]
[Black "Bronstein, Or"]
[WhiteFideId "14100541"]
[BlackFideId "2815770"]
[WhiteElo "2229"]
[BlackElo "2356"]
[Result "0-1"]
[Round "11"]
[TimeControl "180+2"]
[Date "2023.03.21"]
[WhiteClock "0:00:50"]
[BlackClock "0:00:24"]

1. Nc3 {[%clk 0:02:57]}  d5 {[%clk 0:02:59]} 2. d4 {[%clk 0:02:56]}  Nf6 {[%clk 0:02:58]} 3. Bf4 {[%clk 0:02:56]}  Bf5 {[%clk 0:02:54]} 4. Nb5 {[%clk 0:02:52]}  Na6 {[%clk 0:02:53]} 5. e3 {[%clk 0:02:49]}  e6 {[%clk 0:02:53]} 6. a3 {[%clk 0:02:25]}  c6 {[%clk 0:02:48]} 7. Nc3 {[%clk 0:02:25]}  Nc7 {[%clk 0:02:46]} 8. Bd3 {[%clk 0:02:24]}  Bd6 {[%clk 0:02:45]} 9. Bxd6 {[%clk 0:02:22]}  Qxd6 {[%clk 0:02:45]} 10. Bxf5 {[%clk 0:02:22]}  exf5 {[%clk 0:02:45]} 11. Nge2 {[%clk 0:02:21]}  h5 {[%clk 0:02:43]} 12. Qd2 {[%clk 0:02:21]}  h4 {[%clk 0:02:42]} 13. O-O-O {[%clk 0:02:20]}  a5 {[%clk 0:02:41]} 14. f3 {[%clk 0:02:17]}  b5 {[%clk 0:02:40]} 15. Nb1 {[%clk 0:02:12]}  Kf8 {[%clk 0:02:36]} 16. g3 {[%clk 0:02:09]}  g6 {[%clk 0:02:34]} 17. Nf4 {[%clk 0:02:06]}  Kg7 {[%clk 0:02:33]} 18. Rdg1 {[%clk 0:02:02]}  b4 {[%clk 0:02:28]} 19. a4 {[%clk 0:02:01]}  Rac8 {[%clk 0:02:27]} 20. Qf2 {[%clk 0:01:54]}  Ne6 {[%clk 0:02:14]} 21. Nxe6+ {[%clk 0:01:53]}  Qxe6 {[%clk 0:02:14]} 22. gxh4 {[%clk 0:01:53]}  c5 {[%clk 0:02:07]} 23. Nd2 {[%clk 0:01:49]}  cxd4 {[%clk 0:02:05]} 24. exd4 {[%clk 0:01:49]}  Qc6 {[%clk 0:02:04]} 25. Nb3 {[%clk 0:01:48]}  Qxa4 {[%clk 0:02:02]} 26. Kb1 {[%clk 0:01:45]}  Rc4 {[%clk 0:01:46]} 27. Rg5 {[%clk 0:01:43]}  Rhc8 {[%clk 0:01:24]} 28. Rc1 {[%clk 0:01:37]}  Qxb3 {[%clk 0:00:48]} 29. cxb3 {[%clk 0:01:36]}  Rxc1+ {[%clk 0:00:49]} 30. Ka2 {[%clk 0:01:36]}  R8c2 {[%clk 0:00:50]} 31. Qe3 {[%clk 0:01:33]}  Rd1 {[%clk 0:00:38]} 32. Rg1 {[%clk 0:01:17]}  f4 {[%clk 0:00:37]} 33. Rxg6+ {[%clk 0:01:13]}  Kxg6 {[%clk 0:00:28]} 34. Qxf4 {[%clk 0:01:12]}  Rcc1 {[%clk 0:00:24]} 35. Qg5+ {[%clk 0:00:58]}  Kh7 {[%clk 0:00:24]} 36. Qf5+ {[%clk 0:00:57]}  Kg7 {[%clk 0:00:24]} 37. Qg5+ {[%clk 0:00:56]}  Kf8 {[%clk 0:00:25]} 38. Qh6+ {[%clk 0:00:50]}  Ke7 {[%clk 0:00:25]} 39. Qe3+ {[%clk 0:00:50]}  Kd7 {[%clk 0:00:24]} 0-1


[Site "https://www.chess.com"]

[Event "Titled Tuesday Blitz March 21 Early 2023"]
[White "Hambleton, Aman"]
[Black "Matinian, Nikita"]
[WhiteFideId "2606577"]
[BlackFideId "24129100"]
[WhiteElo "2511"]
[BlackElo "2422"]
[Result "1-0"]
[Round "11"]
[TimeControl "180+2"]
[Date "2023.03.21"]
[WhiteClock "0:00:02"]
[BlackClock "0:00:01"]

1. d4 {[%clk 0:02:59]}  Nf6 {[%clk 0:03:00]} 2. Bf4 {[%clk 0:02:58]}  d5 {[%clk 0:03:00]} 3. e3 {[%clk 0:02:58]}  g6 {[%clk 0:03:00]} 4. c3 {[%clk 0:02:56]}  Bg7 {[%clk 0:03:00]} 5. Nf3 {[%clk 0:02:56]}  O-O {[%clk 0:03:00]} 6. h3 {[%clk 0:02:54]}  b6 {[%clk 0:03:00]} 7. Nbd2 {[%clk 0:02:52]}  Bb7 {[%clk 0:03:00]} 8. Bd3 {[%clk 0:02:51]}  c5 {[%clk 0:03:00]} 9. Ne5 {[%clk 0:02:50]}  Nc6 {[%clk 0:02:57]} 10. O-O {[%clk 0:02:46]}  Nd7 {[%clk 0:02:56]} 11. Nxc6 {[%clk 0:02:39]}  Bxc6 {[%clk 0:02:57]} 12. Nf3 {[%clk 0:02:40]}  c4 {[%clk 0:02:44]} 13. Bc2 {[%clk 0:02:36]}  f6 {[%clk 0:02:44]} 14. Bg3 {[%clk 0:01:32]}  e5 {[%clk 0:02:34]} 15. dxe5 {[%clk 0:01:24]}  fxe5 {[%clk 0:02:35]} 16. e4 {[%clk 0:01:24]}  dxe4 {[%clk 0:02:35]} 17. Nd2 {[%clk 0:01:15]}  e3 {[%clk 0:02:21]} 18. Nxc4 {[%clk 0:00:40]}  exf2+ {[%clk 0:02:18]} 19. Rxf2 {[%clk 0:00:32]}  Rxf2 {[%clk 0:01:31]} 20. Bxf2 {[%clk 0:00:31]}  Qg5 {[%clk 0:01:24]} 21. Qg4 {[%clk 0:00:09]}  Qxg4 {[%clk 0:01:24]} 22. hxg4 {[%clk 0:00:10]}  Nc5 {[%clk 0:01:21]} 23. Re1 {[%clk 0:00:02]}  Bd5 {[%clk 0:00:53]} 24. Nxe5 {[%clk 0:00:01]}  Bxa2 {[%clk 0:00:44]} 25. Nc6 {[%clk 0:00:01]}  Bf6 {[%clk 0:00:28]} 26. b4 {[%clk 0:00:01]}  Bxc3 {[%clk 0:00:18]} 27. Re3 {[%clk 0:00:01]}  Bd2 {[%clk 0:00:03]} 28. Ra3 {[%clk 0:00:01]}  Bd5 {[%clk 0:00:02]} 29. Ne7+ {[%clk 0:00:01]}  Kf7 {[%clk 0:00:03]} 30. Nxd5 {[%clk 0:00:02]}  Ne6 {[%clk 0:00:02]} 31. Rf3+ {[%clk 0:00:02]}  Kg8 {[%clk 0:00:01]} 32. Rd3 {[%clk 0:00:03]}  Bf4 {[%clk 0:00:01]} 33. Rf3 {[%clk 0:00:02]}  Bd6 {[%clk 0:00:01]} 34. Re3 {[%clk 0:00:02]}  Nd4 {[%clk 0:00:01]} 35. Bd1 {[%clk 0:00:02]}  Nb5 {[%clk 0:00:01]} 36. Rd3 {[%clk 0:00:02]}  a5 {[%clk 0:00:01]} 37. Nxb6 {[%clk 0:00:02]} 1-0


[Site "https://www.chess.com"]

[Event "Titled Tuesday Blitz March 21 Early 2023"]
[White "Petukhov, Dmitry"]
[Black "Lorenzo De La Riva, Lazaro"]
[WhiteFideId "4142748"]
[BlackFideId "2268809"]
[WhiteElo "2311"]
[BlackElo "2294"]
[Result "1-0"]
[Round "11"]
[TimeControl "180+2"]
[Date "2023.03.21"]
[WhiteClock "0:00:05"]
[BlackClock "0:00:01"]

1. e4 {[%clk 0:02:59]}  c6 {[%clk 0:02:55]} 2. d4 {[%clk 0:02:58]}  d5 {[%clk 0:02:55]} 3. Nd2 {[%clk 0:02:59]}  dxe4 {[%clk 0:02:52]} 4. Nxe4 {[%clk 0:03:00]}  Nd7 {[%clk 0:02:52]} 5. Ng5 {[%clk 0:03:00]}  Ngf6 {[%clk 0:02:48]} 6. Bd3 {[%clk 0:03:00]}  e6 {[%clk 0:02:47]} 7. Qe2 {[%clk 0:02:59]}  Bd6 {[%clk 0:02:46]} 8. N1f3 {[%clk 0:02:59]}  h6 {[%clk 0:02:30]} 9. Ne4 {[%clk 0:02:59]}  Nxe4 {[%clk 0:02:30]} 10. Qxe4 {[%clk 0:03:00]}  Nf6 {[%clk 0:02:23]} 11. Qe2 {[%clk 0:03:00]}  Qc7 {[%clk 0:02:22]} 12. O-O {[%clk 0:03:00]}  b6 {[%clk 0:02:21]} 13. a4 {[%clk 0:02:59]}  Bb7 {[%clk 0:01:59]} 14. h3 {[%clk 0:02:57]}  c5 {[%clk 0:01:55]} 15. dxc5 {[%clk 0:02:51]}  Bxc5 {[%clk 0:01:54]} 16. a5 {[%clk 0:02:46]}  Qg3 {[%clk 0:01:37]} 17. Bb5+ {[%clk 0:02:22]}  Ke7 {[%clk 0:01:36]} 18. Be3 {[%clk 0:02:21]}  Bxf3 {[%clk 0:01:27]} 19. Bxc5+ {[%clk 0:02:20]}  bxc5 {[%clk 0:01:28]} 20. fxg3 {[%clk 0:02:20]}  Bxe2 {[%clk 0:01:28]} 21. Bxe2 {[%clk 0:02:21]}  Rab8 {[%clk 0:01:28]} 22. b3 {[%clk 0:02:20]}  Rhd8 {[%clk 0:01:28]} 23. Bd3 {[%clk 0:02:13]}  Nd5 {[%clk 0:01:26]} 24. Rf2 {[%clk 0:01:53]}  Nb4 {[%clk 0:01:24]} 25. Bc4 {[%clk 0:01:54]}  Nc6 {[%clk 0:01:21]} 26. c3 {[%clk 0:01:50]}  Ne5 {[%clk 0:01:20]} 27. Ra4 {[%clk 0:01:48]}  Rd1+ {[%clk 0:01:17]} 28. Kh2 {[%clk 0:01:48]}  Rc1 {[%clk 0:01:16]} 29. Re2 {[%clk 0:01:42]}  f6 {[%clk 0:01:12]} 30. Re3 {[%clk 0:01:37]}  Rc2 {[%clk 0:01:09]} 31. g4 {[%clk 0:01:33]}  Rd8 {[%clk 0:01:07]} 32. Bf1 {[%clk 0:01:19]}  Rd1 {[%clk 0:01:03]} 33. Ba6 {[%clk 0:01:12]}  Rdd2 {[%clk 0:01:01]} 34. Bf1 {[%clk 0:01:07]}  Rf2 {[%clk 0:01:00]} 35. Ra1 {[%clk 0:01:07]}  Ng6 {[%clk 0:00:53]} 36. Kg3 {[%clk 0:01:04]}  e5 {[%clk 0:00:51]} 37. b4 {[%clk 0:01:00]}  cxb4 {[%clk 0:00:47]} 38. cxb4 {[%clk 0:01:00]}  Nf4 {[%clk 0:00:48]} 39. b5 {[%clk 0:00:54]}  g5 {[%clk 0:00:48]} 40. b6 {[%clk 0:00:46]}  axb6 {[%clk 0:00:47]} 41. a6 {[%clk 0:00:46]}  Rxf1 {[%clk 0:00:45]} 42. Rxf1 {[%clk 0:00:39]}  Rxg2+ {[%clk 0:00:45]} 43. Kf3 {[%clk 0:00:39]}  Ra2 {[%clk 0:00:46]} 44. Ke4 {[%clk 0:00:38]}  Ke6 {[%clk 0:00:44]} 45. Rc1 {[%clk 0:00:34]}  Ra4+ {[%clk 0:00:44]} 46. Kf3 {[%clk 0:00:34]}  Rxa6 {[%clk 0:00:45]} 47. Rc6+ {[%clk 0:00:33]}  Kf7 {[%clk 0:00:42]} 48. Rc7+ {[%clk 0:00:32]}  Kg6 {[%clk 0:00:41]} 49. Rc6 {[%clk 0:00:26]}  Nxh3 {[%clk 0:00:32]} 50. Rxe5 {[%clk 0:00:26]}  Ra3+ {[%clk 0:00:33]} 51. Ke4 {[%clk 0:00:24]}  Nf4 {[%clk 0:00:33]} 52. Re8 {[%clk 0:00:16]}  h5 {[%clk 0:00:26]} 53. gxh5+ {[%clk 0:00:15]}  Nxh5 {[%clk 0:00:24]} 54. Rxb6 {[%clk 0:00:14]}  g4 {[%clk 0:00:22]} 55. Rg8+ {[%clk 0:00:13]}  Ng7 {[%clk 0:00:20]} 56. Rb7 {[%clk 0:00:12]}  f5+ {[%clk 0:00:13]} 57. Ke5 {[%clk 0:00:09]}  Re3+ {[%clk 0:00:12]} 58. Kf4 {[%clk 0:00:08]}  Rf3+ {[%clk 0:00:11]} 59. Ke5 {[%clk 0:00:08]}  Re3+ {[%clk 0:00:11]} 60. Kd5 {[%clk 0:00:08]}  Kg5 {[%clk 0:00:11]} 61. Rbxg7+ {[%clk 0:00:08]}  Kf4 {[%clk 0:00:11]} 62. Rf7 {[%clk 0:00:08]}  Re5+ {[%clk 0:00:09]} 63. Kd4 {[%clk 0:00:08]}  Ra5 {[%clk 0:00:09]} 64. Rfg7 {[%clk 0:00:07]}  Kf3 {[%clk 0:00:08]} 65. Rg5 {[%clk 0:00:06]}  Kf4 {[%clk 0:00:06]} 66. Kc3 {[%clk 0:00:06]}  Rd5 {[%clk 0:00:05]} 67. Kc4 {[%clk 0:00:06]}  Rd7 {[%clk 0:00:04]} 68. R5g7 {[%clk 0:00:06]}  Rd1 {[%clk 0:00:03]} 69. Rf7 {[%clk 0:00:06]}  Ra1 {[%clk 0:00:01]} 70. Rgf8 {[%clk 0:00:05]}  Ra5 {[%clk 0:00:01]} 71. Kb4 {[%clk 0:00:05]} 1-0


[Site "https://www.chess.com"]

[Event "Titled Tuesday Blitz March 21 Early 2023"]
[White "Yilmaz, Mustafa"]
[Black "Fernandez Hernandez, Arturo A."]
[WhiteFideId "6302718"]
[BlackFideId "3509230"]
[WhiteElo "2523"]
[BlackElo "2393"]
[Result "1-0"]
[Round "11"]
[TimeControl "180+2"]
[Date "2023.03.21"]
[WhiteClock "0:00:09"]
[BlackClock "0:00:07"]

1. e4 {[%clk 0:03:00]}  c5 {[%clk 0:02:59]} 2. Nf3 {[%clk 0:03:00]}  e6 {[%clk 0:03:00]} 3. d4 {[%clk 0:02:57]}  cxd4 {[%clk 0:03:00]} 4. Nxd4 {[%clk 0:02:57]}  Nc6 {[%clk 0:03:01]} 5. Nc3 {[%clk 0:02:56]}  Qc7 {[%clk 0:03:02]} 6. g3 {[%clk 0:02:54]}  Nf6 {[%clk 0:02:58]} 7. Bg2 {[%clk 0:02:51]}  Bb4 {[%clk 0:02:58]} 8. O-O {[%clk 0:02:45]}  a6 {[%clk 0:02:56]} 9. Nxc6 {[%clk 0:02:39]}  bxc6 {[%clk 0:02:55]} 10. e5 {[%clk 0:02:17]}  Qxe5 {[%clk 0:02:33]} 11. Bf4 {[%clk 0:02:17]}  Qh5 {[%clk 0:02:32]} 12. Bf3 {[%clk 0:02:09]}  Qf5 {[%clk 0:02:32]} 13. Na4 {[%clk 0:01:58]}  O-O {[%clk 0:02:19]} 14. Nb6 {[%clk 0:01:53]}  Ra7 {[%clk 0:02:20]} 15. Nc4 {[%clk 0:01:44]}  d5 {[%clk 0:02:09]} 16. Ne5 {[%clk 0:01:35]}  Bb7 {[%clk 0:01:46]} 17. Nd3 {[%clk 0:01:31]}  Be7 {[%clk 0:01:43]} 18. g4 {[%clk 0:01:31]}  Nxg4 {[%clk 0:01:21]} 19. Bxg4 {[%clk 0:01:30]}  Qf6 {[%clk 0:01:19]} 20. Be5 {[%clk 0:01:16]}  Qh4 {[%clk 0:01:15]} 21. Bg3 {[%clk 0:01:16]}  Qf6 {[%clk 0:01:14]} 22. Ne5 {[%clk 0:01:15]}  Ba8 {[%clk 0:01:02]} 23. f4 {[%clk 0:01:11]}  Qh6 {[%clk 0:00:57]} 24. c3 {[%clk 0:01:07]}  c5 {[%clk 0:00:44]} 25. Qc2 {[%clk 0:01:02]}  Re8 {[%clk 0:00:23]} 26. Rae1 {[%clk 0:00:59]}  Bf8 {[%clk 0:00:22]} 27. Qa4 {[%clk 0:00:48]}  Rd8 {[%clk 0:00:17]} 28. f5 {[%clk 0:00:46]}  f6 {[%clk 0:00:17]} 29. Nc6 {[%clk 0:00:24]}  Bxc6 {[%clk 0:00:17]} 30. Qxc6 {[%clk 0:00:24]}  e5 {[%clk 0:00:18]} 31. Bf3 {[%clk 0:00:19]}  Rad7 {[%clk 0:00:17]} 32. Rd1 {[%clk 0:00:18]}  e4 {[%clk 0:00:16]} 33. Bg2 {[%clk 0:00:14]}  a5 {[%clk 0:00:16]} 34. Qe6+ {[%clk 0:00:13]}  Kh8 {[%clk 0:00:15]} 35. Kh1 {[%clk 0:00:14]}  Re7 {[%clk 0:00:15]} 36. Qb6 {[%clk 0:00:14]}  Red7 {[%clk 0:00:13]} 37. Bxe4 {[%clk 0:00:12]}  dxe4 {[%clk 0:00:11]} 38. Qxd8 {[%clk 0:00:12]}  Rxd8 {[%clk 0:00:11]} 39. Rxd8 {[%clk 0:00:13]}  g5 {[%clk 0:00:10]} 40. Bd6 {[%clk 0:00:13]}  Kg8 {[%clk 0:00:05]} 41. Bxf8 {[%clk 0:00:10]}  Qxf8 {[%clk 0:00:06]} 42. Rxf8+ {[%clk 0:00:10]}  Kxf8 {[%clk 0:00:07]} 43. Re1 {[%clk 0:00:09]} 1-0


[Site "https://www.chess.com"]